bitfinex/quotes_ETHUSD_20250406
["timestamp","ask_amount","ask_price","bid_price","bid_amount"]
[1743944686890,3.94088,1776.3,1776.1,5.05688035]
[1743944687977,7.79366,1776.4,1776.1,5.05688035]
[1743944688495,3.0,1776.4,1776.1,5.05688035]
[1743944691306,6.94065,1776.4,1776.1,5.05688035]
[1743944691506,6.94065,1776.4,1776.1,4.29248035]
[1743944692009,3.0,1776.4,1776.1,4.29248035]
[1743944692877,3.0,1776.4,1776.2,0.7636]
[1743944698386,6.081,1776.5,1776.3,4.24248035]
[1743944698387,3.0,1776.5,1776.3,4.24248035]
[1743944698729,3.41835292,1776.7,1776.3,4.24248035]
[1743944698885,8.48804121,1776.7,1776.3,4.24248035]
[1743944699088,4.54814121,1776.7,1776.3,4.24248035]
[1743944699626,3.41835292,1776.7,1776.4,0.7664]
[1743944699930,0.41835292,1776.7,1776.4,5.00888035]
[1743944700127,3.0,1776.8,1776.4,5.00888035]
[1743944700282,8.93903,1777.1,1776.4,5.00888035]
[1743944700485,9.968543,1777.1,1776.5,4.24248035]
[1743944700720,6.93922,1777.0,1776.5,4.24248035]
[1743944701445,3.93944,1776.9,1776.5,4.24248035]
[1743944701584,6.93922,1777.0,1776.5,4.24248035]
[1743944701585,3.93928,1777.0,1776.5,4.24248035]
[1743944702116,3.0,1776.9,1776.5,4.24248035]
[1743944702498,6.93944,1776.9,1776.5,4.24248035]
[1743944702698,3.0,1776.9,1776.5,4.24248035]
[1743944703618,3.0,1776.9,1776.6,5.00888035]
[1743944703820,0.42835061,1777.0,1776.7,0.7664]
[1743944704022,0.42835061,1777.0,1776.7,4.70628]
[1743944704226,0.55,1777.2,1776.8,0.7664]
[1743944704431,4.547174,1777.2,1776.9,4.24248035]
[1743944704927,0.997174,1777.2,1776.9,4.24248035]
[1743944705096,13.35944,1777.5,1777.0,0.7664]
[1743944705501,3.0,1777.4,1777.0,0.7664]
[1743944706133,0.55,1777.3,1777.0,0.7664]
[1743944707205,3.0,1777.4,1777.0,5.00888035]
[1743944707413,4.297115,1777.4,1777.0,5.00888035]
[1743944707909,4.7251351,1777.4,1777.0,5.00888035]
[1743944708304,3.0,1777.3,1777.0,5.00888035]
[1743944709029,3.55,1777.1,1777.0,4.24248035]
[1743944709235,4.353899,1777.1,1777.0,4.24248035]
[1743944709404,3.0,1777.2,1777.0,4.24248035]
[1743944710534,3.0,1777.1,1777.0,4.24248035]
[1743944710704,3.0,1776.9,1776.6,0.7764]
[1743944711246,6.93946,1776.9,1776.6,0.7764]
[1743944711459,8.027337,1776.9,1776.6,0.7764]
[1743944711799,3.0,1776.7,1776.5,4.24248035]
[1743944712619,3.0,1776.7,1776.6,0.7764]
[1743944714137,3.0,1776.7,1776.5,4.24248035]
[1743944714334,3.0,1776.6,1776.2,4.24248035]
[1743944714637,3.0,1776.6,1776.2,5.04998035]
[1743944714945,0.55,1776.6,1776.2,5.04998035]
[1743944715832,4.14296,1776.7,1776.2,8.99085035]
[1743944716036,3.0,1776.7,1776.3,0.8075]
[1743944716233,3.0,1776.7,1776.4,3.94045]
[1743944716434,3.0,1776.7,1776.5,0.8075]
[1743944716617,3.0,1777.0,1776.5,0.8075]
[1743944716816,3.693901,1777.0,1776.5,0.8075]
[1743944717334,0.693901,1777.0,1776.5,0.8075]
[1743944717532,3.693901,1777.0,1776.5,0.8075]
[1743944717739,0.693901,1777.0,1776.5,0.8075]
[1743944718502,3.693901,1777.0,1776.5,0.8075]
[1743944718709,4.11555671,1777.0,1776.5,0.8075]
[1743944718909,3.0,1776.8,1776.5,0.8075]
[1743944719104,3.0,1776.9,1776.5,0.8075]
[1743944719318,3.0,1776.9,1776.6,4.24248035]
[1743944719524,4.11555671,1777.0,1776.6,4.24248035]
[1743944719719,3.42165571,1777.0,1776.6,4.24248035]
[1743944720144,3.42165571,1777.0,1776.7,0.8268]
[1743944720439,0.42165571,1777.0,1776.7,5.06928035]
[1743944720621,0.55,1777.1,1776.7,5.06928035]
[1743944721310,5.799065,1777.4,1776.8,3.93965]
[1743944721509,10.3931815,1777.4,1776.9,0.8268]
[1743944721717,3.0,1777.3,1776.9,0.8268]
[1743944722020,0.55,1777.3,1776.9,0.8268]
[1743944722425,14.1232,1777.6,1777.1,0.8268]
[1743944722603,7.48812,1777.5,1777.1,0.8268]
[1743944722812,9.29787334,1777.5,1777.1,0.8268]
[1743944723841,2.35975334,1777.5,1777.1,0.8268]
[1743944724026,5.35975334,1777.5,1777.1,0.8268]
[1743944725111,9.29796334,1777.5,1777.1,0.8268]
[1743944725439,5.35975334,1777.5,1777.1,0.8268]
[1743944725811,9.29788334,1777.5,1777.1,0.8268]
[1743944726127,5.35975334,1777.5,1777.1,0.8268]
[1743944727519,3.0,1777.5,1777.2,0.8268]
[1743944727722,3.0,1777.5,1777.3,0.8268]
[1743944728242,3.0,1777.5,1777.3,5.06928035]
[1743944729340,3.0,1777.8,1777.3,8.18098035]
[1743944729644,3.42832181,1777.8,1777.4,0.7772]
[1743944731268,8.55106599,1777.8,1777.4,0.7772]
[1743944731415,0.21434204,1777.7,1777.4,0.7772]
[1743944734053,0.21434204,1777.7,1777.5,4.24248035]
[1743944734554,0.21434204,1777.7,1777.6,4.69029]
[1743944735061,0.21930364,1777.7,1777.6,4.74653947]
[1743944735234,0.55,1778.1,1777.7,0.7524]
[1743944735555,0.22130774,1778.0,1777.7,8.93249035]
[1743944735953,0.22130774,1778.0,1777.8,0.7524]
[1743944736154,3.0,1778.1,1777.8,0.7524]
[1743944736457,3.0,1778.2,1777.8,0.7524]
[1743944736639,0.22226598,1778.1,1777.8,0.7524]
[1743944736845,3.0,1778.2,1777.8,0.7524]
[1743944737037,0.22226598,1778.1,1777.8,0.7524]
[1743944737236,4.70688835,1778.2,1777.8,0.7524]
[1743944737422,0.22226598,1778.1,1777.8,0.7524]
[1743944737622,8.64348835,1778.2,1777.8,0.7524]
[1743944737845,0.22226598,1778.1,1777.8,0.7524]
[1743944738159,3.41245335,1778.2,1777.8,0.7524]
[1743944738764,0.22440967,1778.1,1777.8,0.7524]
[1743944739151,3.41245335,1778.2,1777.8,0.7524]
[1743944739385,0.22365263,1778.0,1777.8,0.7524]
[1743944739691,0.22262755,1777.9,1777.8,0.7524]
[1743944739846,3.41245335,1778.2,1777.8,4.99488035]
[1743944740048,0.22387382,1778.1,1777.8,4.99488035]
[1743944740371,3.41245335,1778.2,1777.8,4.99488035]
[1743944740570,0.22325072,1778.0,1777.8,4.99488035]
[1743944740775,3.41245335,1778.2,1777.8,4.99488035]
[1743944740948,0.22262755,1777.9,1777.8,4.99488035]
[1743944741293,0.22276153,1777.9,1777.8,4.99488035]
[1743944741492,3.41245335,1778.2,1777.8,4.99488035]
[1743944741673,0.7740078,1778.1,1777.8,4.99488035]
[1743944741848,3.2240078,1778.1,1777.8,4.99488035]
[1743944743288,7.1608578,1778.1,1777.8,4.99488035]
[1743944743595,0.55,1778.0,1777.8,4.24248035]
[1743944743776,7.48722,1777.9,1777.8,4.24248035]
[1743944743981,8.90662161,1777.9,1777.8,4.24248035]
[1743944745767,3.0,1777.8,1777.5,4.24248035]
[1743944745971,0.22195761,1777.9,1777.7,0.7524]
[1743944746175,0.41245335,1778.2,1777.8,3.93745]
[1743944746478,3.0,1778.3,1777.8,4.68985]
[1743944746679,3.41415856,1778.3,1777.8,4.68985]
[1743944747082,3.41415856,1778.3,1777.8,3.93745]
[1743944747284,3.41415856,1778.3,1777.9,0.7524]
[1743944748297,3.41415856,1778.3,1777.9,4.68962]
[1743944748503,0.41415856,1778.3,1777.9,0.7524]
[1743944748806,6.93613,1778.4,1778.0,4.24248035]
[1743944749606,3.0,1778.4,1778.0,4.24248035]
[1743944750102,6.93616,1778.4,1778.0,4.24248035]
[1743944750752,7.36719544,1778.4,1778.0,4.24248035]
[1743944751254,11.30347544,1778.4,1778.0,4.24248035]
[1743944751581,7.36719544,1778.4,1778.0,4.24248035]
[1743944752087,0.22498587,1778.3,1778.1,0.772]
[1743944752294,0.43103544,1778.4,1778.1,5.01448035]
[1743944752458,0.22498587,1778.3,1778.1,5.01448035]
[1743944752657,7.48591,1778.5,1778.1,5.01448035]
[1743944752865,0.22560877,1778.4,1778.1,5.01448035]
[1743944754074,0.64612101,1778.4,1778.1,5.01448035]
[1743944754277,0.64612101,1778.4,1778.2,5.02018035]
[1743944754278,0.22560877,1778.4,1778.2,5.02018035]
[1743944754474,3.93545,1778.8,1778.2,8.17901035]
[1743944754674,3.22747704,1778.7,1778.3,5.02018035]
[1743944755466,0.22747704,1778.7,1778.3,8.95642035]
[1743944755661,0.22747704,1778.7,1778.4,0.7777]
[1743944755866,0.22747704,1778.7,1778.4,5.02018035]
[1743944756102,0.22747704,1778.7,1778.4,8.95628035]
[1743944756409,0.22747704,1778.7,1778.5,0.7777]
[1743944756907,0.22872911,1778.6,1778.5,0.7777]
[1743944757081,7.40564443,1778.9,1778.5,0.7777]
[1743944757285,0.23265186,1778.8,1778.5,0.7777]
[1743944757897,0.23265186,1778.8,1778.5,4.71347]
[1743944758102,0.23265186,1778.8,1778.7,0.7777]
[1743944758298,0.23265186,1778.8,1778.7,5.02018035]
[1743944761024,3.23265186,1778.8,1778.7,4.24248035]
[1743944764181,0.23265186,1778.8,1778.7,8.95563035]
[1743944764775,0.05,1778.9,1778.8,4.71293]
[1743944764987,0.05,1778.9,1778.8,14.39241035]
[1743944765191,0.25632982,1778.9,1778.8,14.39241035]
[1743944766717,0.25632982,1778.9,1778.8,10.45718035]
[1743944767128,0.25632982,1778.9,1778.8,14.39241035]
[1743944767334,0.25632982,1778.9,1778.8,10.45718035]
[1743944767714,0.25632982,1778.9,1778.8,14.39241035]
[1743944773257,0.05,1778.9,1778.8,14.39241035]
[1743944774064,0.26148836,1778.9,1778.8,14.39241035]
[1743944774267,0.05,1778.9,1778.8,14.39241035]
[1743944774953,0.26148836,1778.9,1778.8,14.39241035]
[1743944775154,3.47018564,1779.0,1778.9,7.91600199]
[1743944775556,3.66467915,1779.0,1778.9,7.91600199]
[1743944775856,3.47018564,1779.0,1778.9,7.91600199]
[1743944776064,3.66454535,1779.0,1778.9,7.91600199]
[1743944776450,3.47018564,1779.0,1778.9,8.72460199]
[1743944781278,3.47018564,1779.3,1779.2,4.74295]
[1743944781482,3.65010112,1779.3,1779.2,14.13494199]
[1743944782382,3.47018564,1779.3,1779.2,14.13494199]
[1743944784083,3.65010112,1779.3,1779.2,14.13494199]
[1743944784787,0.17991548,1779.3,1779.2,14.13494199]
[1743944785488,0.17991548,1779.3,1779.2,10.20059199]
[1743944785691,0.7665,1779.2,1778.9,3.98099199]
[1743944785860,0.17733314,1779.1,1778.9,3.98099199]
[1743944786060,0.7665,1779.2,1778.9,3.98099199]
[1743944786294,0.17733314,1779.1,1778.9,3.98099199]
[1743944786494,0.17733314,1779.1,1778.9,7.91600199]
[1743944786695,0.17733314,1779.1,1779.0,3.93479]
[1743944786898,3.0,1779.3,1779.0,3.93479]
[1743944787065,0.17795545,1779.2,1779.0,3.99099465]
[1743944787391,3.0,1779.3,1779.0,3.93479]
[1743944787596,0.7665,1779.2,1778.9,3.98099199]
[1743944787769,0.94445545,1779.2,1778.9,3.98099199]
[1743944788175,3.47018564,1779.0,1778.9,3.98099199]
[1743944788596,3.64689639,1779.0,1778.9,7.91600199]
[1743944789276,3.47018564,1779.0,1778.9,7.91600199]
[1743944789677,3.47018564,1779.0,1778.9,3.98099199]
[1743944789878,3.64689639,1779.0,1778.9,3.98099199]
[1743944790896,6.64689639,1779.0,1778.9,3.98099199]
[1743944792065,10.58168639,1779.0,1778.9,3.98099199]
[1743944792286,11.34298639,1779.0,1778.9,3.98099199]
[1743944793400,12.87075903,1779.0,1778.9,3.98099199]
[1743944794163,9.40057339,1779.0,1778.9,3.98099199]
[1743944794368,0.8206,1778.7,1778.5,3.98099199]
[1743944794779,0.17421693,1778.6,1778.5,3.98099199]
[1743944795618,0.8206,1778.9,1778.5,7.91672199]
[1743944795821,3.8206,1779.0,1778.6,4.74367]
[1743944796123,3.8206,1779.0,1778.6,8.67921]
[1743944796295,3.0,1779.0,1778.7,3.93543]
[1743944797016,3.0,1779.0,1778.7,3.93536]
[1743944797336,0.17755659,1778.9,1778.7,3.93536]
[1743944797614,3.8206,1779.1,1778.7,3.93536]
[1743944797819,0.17680035,1778.8,1778.6,4.74372]
[1743944798022,3.8206,1779.1,1778.6,4.74364]
[1743944798323,3.8206,1779.1,1778.6,8.67918]
[1743944798487,0.17816919,1779.0,1778.6,8.67918]
[1743944798688,0.17816919,1779.0,1778.7,3.93532]
[1743944798918,0.17816919,1779.0,1778.8,3.93521]
[1743944799236,0.17816919,1779.0,1778.9,10.90311]
[1743944799628,1.2360466,1779.3,1778.9,10.90311]
[1743944799822,0.16602118,1779.0,1778.9,10.90311]
[1743944800004,1.2360466,1779.3,1778.9,10.90311]
[1743944800190,0.16661766,1779.0,1778.9,6.16]
[1743944800702,3.0,1779.2,1778.9,6.16]
[1743944801032,0.16723979,1779.1,1778.9,6.16]
[1743944801237,0.16723979,1779.1,1778.9,6.21620723]
[1743944801421,0.16723979,1779.1,1778.9,6.2162072]
[1743944801737,0.16661766,1779.0,1778.9,10.1511172]
[1743944801932,4.2360466,1779.3,1778.9,10.1511172]
[1743944802133,0.16786185,1779.2,1778.9,10.1511172]
[1743944802333,0.16786185,1779.2,1778.9,6.16]
[1743944802830,0.16786185,1779.2,1778.9,10.15120721]
[1743944803001,0.16786185,1779.2,1778.9,10.095]
[1743944803208,0.16786185,1779.2,1778.9,14.02992]
[1743944803403,0.16786185,1779.2,1779.0,3.99093345]
[1743944803714,0.16786185,1779.2,1778.9,10.09492]
[1743944804305,0.16786185,1779.2,1779.0,6.16]
[1743944805908,4.75517,1779.1,1779.0,6.16]
[1743944806233,3.93481,1779.0,1778.5,6.16]
[1743944806539,0.16599771,1778.9,1778.5,10.09585]
[1743944807012,0.16599771,1778.9,1778.6,3.93565]
[1743944807218,0.16599771,1778.9,1778.7,3.93537]
[1743944807418,3.8206,1779.1,1778.7,4.74347]
[1743944807625,4.24502726,1779.3,1778.8,3.93511]
[1743944807818,8.17918726,1779.3,1778.8,3.93511]
[1743944809042,1.24502726,1779.3,1778.9,10.09499]
[1743944809249,1.24502726,1779.3,1778.9,10.15112657]
[1743944809415,1.24502726,1779.3,1778.9,10.09492]
[1743944810110,1.24502726,1779.3,1778.9,6.16]
[1743944810311,1.24502726,1779.3,1778.9,10.09489]
[1743944810531,1.24502726,1779.3,1778.9,6.16]
[1743944810738,6.93447,1779.2,1778.9,6.16]
[1743944811429,3.0,1779.2,1778.9,6.16]
[1743944812256,0.16670845,1779.1,1778.9,6.16]
[1743944813272,8.17916726,1779.3,1778.9,6.16]
[1743944813440,0.16608996,1779.0,1778.9,6.16]
[1743944813634,8.17916726,1779.3,1778.9,6.16]
[1743944813832,0.16608996,1779.0,1778.9,6.16]
[1743944814029,3.9345,1779.2,1778.9,6.16]
[1743944814228,0.16608996,1779.0,1778.9,6.16]
[1743944814434,3.9345,1779.2,1778.9,6.16]
[1743944814628,0.16608996,1779.0,1778.9,6.16]
[1743944814969,0.16609559,1779.0,1778.9,6.16]
[1743944815141,8.17916726,1779.3,1778.9,6.16]
[1743944815343,0.16733956,1779.2,1778.9,6.16]
[1743944816783,0.16733956,1779.2,1778.9,10.095]
[1743944818306,0.16733956,1779.2,1779.0,10.93609634]
[1743944818603,3.0,1779.4,1779.0,14.8145]
[1743944818758,0.16671747,1779.1,1779.0,14.8145]
[1743944818959,3.777,1779.5,1779.0,14.8145]
[1743944819210,0.16858353,1779.4,1779.1,6.16]
[1743944819411,0.16858353,1779.4,1779.1,10.09457]
[1743944819707,0.16858353,1779.4,1779.2,3.9343]
[1743944819887,0.16858353,1779.4,1779.2,7.8686]
[1743944820088,4.71026,1779.7,1779.2,7.8686]
[1743944820265,0.16982863,1779.6,1779.3,0.7851]
[1743944820465,3.42065807,1779.6,1779.3,0.7851]
[1743944820672,0.16934362,1779.5,1779.3,0.7851]
[1743944820922,0.16934362,1779.5,1779.1,11.57]
[1743944821081,0.777,1779.4,1779.1,11.57]
[1743944821412,0.16796609,1779.3,1779.1,11.57]
[1743944823470,4.10218609,1779.3,1779.1,6.16]
[1743944824016,0.16796609,1779.3,1779.1,6.16]
[1743944827607,0.16796609,1779.3,1779.1,10.09448]
[1743944827904,3.0,1779.5,1779.1,10.09448]
[1743944828110,0.1685942,1779.4,1779.1,10.09448]
[1743944828475,0.1685942,1779.4,1779.1,6.16]
[1743944828698,3.0,1779.3,1779.1,6.16]
[1743944828900,0.16735023,1779.2,1779.1,6.16]
[1743944829302,6.9338,1779.5,1779.1,6.16]
[1743944829508,3.0,1779.3,1779.1,6.16]
[1743944829706,0.16735023,1779.2,1779.1,6.16]
[1743944829905,3.0,1779.3,1779.1,6.16]
[1743944830204,0.16735023,1779.2,1779.1,6.16]
[1743944830815,3.0,1779.4,1779.1,6.16]
[1743944831010,0.16735023,1779.2,1779.1,6.16]
[1743944831182,3.0,1779.4,1779.1,6.16]
[1743944831383,0.16797225,1779.3,1779.1,6.16]
[1743944832778,0.99737225,1779.3,1779.1,6.16]
[1743944832983,7.93154225,1779.3,1779.1,6.16]
[1743944833199,3.93435,1779.2,1779.1,6.16]
[1743944833398,5.18392847,1779.3,1779.1,6.16]
[1743944833611,0.16735023,1779.2,1779.1,6.16]
[1743944837153,7.10170023,1779.2,1779.1,6.16]
[1743944837947,3.16735023,1779.2,1779.1,6.16]
[1743944839354,3.16735023,1779.2,1779.1,6.9523]
[1743944842636,0.16735023,1779.2,1779.1,10.88687]
[1743944843017,3.0,1779.5,1779.1,10.88687]
[1743944843214,0.1666779,1779.2,1779.1,6.9523]
[1743944843403,4.7145,1779.4,1779.1,6.16]
[1743944843603,0.16600916,1779.2,1779.1,6.16]
[1743944843835,10.86848,1779.3,1779.1,6.16]
[1743944844034,0.16534035,1779.2,1779.1,6.16]
[1743944844232,7.09969035,1779.2,1779.1,6.16]
[1743944846351,7.88019035,1779.2,1779.1,6.16]
[1743944846928,3.94584035,1779.2,1779.1,6.16]
[1743944847443,7.88019035,1779.2,1779.1,6.16]
[1743944851148,3.16534035,1779.2,1779.1,6.16]
[1743944851720,3.16534035,1779.2,1779.1,6.9635]
[1743944851920,0.16534035,1779.2,1779.1,6.9635]
[1743944852133,3.0,1779.3,1779.1,6.9635]
[1743944852427,0.16547412,1779.2,1779.1,6.9635]
[1743944853739,6.93457,1779.1,1779.0,5.0]
[1743944853920,7.08609776,1779.1,1779.0,5.0]
[1743944854125,7.84659776,1779.1,1779.0,5.0]
[1743944854351,9.05634728,1779.1,1779.0,5.0]
[1743944854758,9.60634728,1779.1,1779.0,5.0]
[1743944857027,10.03736043,1779.1,1779.0,5.0]
[1743944857948,15.42936043,1779.1,1779.0,5.0]
[1743944863858,3.9359,1778.5,1778.4,6.16]
[1743944864064,6.93618,1778.4,1778.1,6.9623]
[1743944864430,0.14465815,1778.3,1778.1,6.9623]
[1743944864724,3.0,1778.4,1778.1,6.9623]
[1743944864959,0.14465815,1778.3,1778.1,6.9623]
[1743944865129,3.0,1778.4,1778.1,6.9623]
[1743944865330,0.14465815,1778.3,1778.1,6.9623]
[1743944865551,3.0,1778.4,1778.1,6.9623]
[1743944865751,0.14465815,1778.3,1778.1,10.95519444]
[1743944865951,3.0,1778.4,1778.2,0.8023]
[1743944866163,0.14465815,1778.3,1778.2,0.8023]
[1743944866361,3.0,1778.4,1778.2,0.8023]
[1743944866532,0.14465815,1778.3,1778.2,0.8023]
[1743944866730,3.0,1778.4,1778.2,0.8023]
[1743944867041,0.14465815,1778.3,1778.2,0.8023]
[1743944867363,3.0,1778.4,1778.2,0.8023]
[1743944867557,0.14465815,1778.3,1778.2,0.8023]
[1743944867762,3.0,1778.4,1778.2,0.8023]
[1743944867951,0.14465815,1778.3,1778.2,0.8023]
[1743944868154,3.0,1778.4,1778.2,0.8023]
[1743944868355,0.14465815,1778.3,1778.2,0.8023]
[1743944868553,3.0,1778.4,1778.2,0.8023]
[1743944868864,0.14463598,1778.3,1778.2,6.9623]
[1743944869162,3.0,1778.4,1778.2,6.9623]
[1743944869466,0.14463598,1778.3,1778.2,6.9623]
[1743944869832,3.0,1778.4,1778.2,6.9623]
[1743944870033,0.14463598,1778.3,1778.2,6.9623]
[1743944870530,3.93632,1778.4,1778.2,6.9623]
[1743944870775,0.14443517,1778.3,1778.2,6.9623]
[1743944870987,3.93632,1778.4,1778.2,6.9623]
[1743944871181,0.14443517,1778.3,1778.2,6.9623]
[1743944871382,3.93632,1778.4,1778.2,6.9623]
[1743944871576,0.14443517,1778.3,1778.2,6.9623]
[1743944871769,3.93632,1778.4,1778.2,6.9623]
[1743944871971,0.14443517,1778.3,1778.2,6.9623]
[1743944872168,7.8726,1778.4,1778.2,6.9623]
[1743944872375,0.14443517,1778.3,1778.2,6.9623]
[1743944872561,7.8726,1778.4,1778.2,6.9623]
[1743944872765,0.14443517,1778.3,1778.2,6.9623]
[1743944873077,7.8726,1778.4,1778.2,6.9623]
[1743944873389,0.14443517,1778.3,1778.2,6.9623]
[1743944873592,3.93628,1778.4,1778.2,6.9623]
[1743944873795,0.14443517,1778.3,1778.2,6.9623]
[1743944874087,3.93617,1778.4,1778.2,6.9623]
[1743944874288,0.14443517,1778.3,1778.2,6.9623]
[1743944874688,7.87244,1778.4,1778.2,6.9623]
[1743944874854,0.14443517,1778.3,1778.2,6.9623]
[1743944875190,7.87244,1778.4,1778.2,6.9623]
[1743944875366,4.08077517,1778.3,1778.2,6.16]
[1743944875559,0.14443517,1778.3,1778.2,6.16]
[1743944875765,7.87244,1778.4,1778.2,6.16]
[1743944875971,0.14443517,1778.3,1778.2,6.16]
[1743944876173,3.93617,1778.4,1778.2,6.16]
[1743944876372,0.14443517,1778.3,1778.2,6.16]
[1743944876568,3.0,1778.3,1778.2,6.16]
[1743944876773,7.08077517,1778.3,1778.2,6.16]
[1743944879701,8.25904969,1778.3,1778.2,6.16]
[1743944880507,8.25904969,1778.3,1777.9,6.9336]
[1743944880508,3.93692,1778.1,1777.9,6.9336]
[1743944880812,0.13651818,1778.0,1777.9,6.9336]
[1743944881381,3.937,1778.0,1777.9,6.9336]
[1743944881615,7.07331719,1778.0,1777.9,6.9336]
[1743944882104,7.07331719,1778.0,1777.9,6.16]
[1743944882709,3.13631719,1778.0,1777.9,6.16]
[1743944883984,3.55618994,1778.0,1777.9,6.16]
[1743944885431,0.13631719,1778.0,1777.9,6.16]
[1743944885721,6.93635,1778.3,1778.0,0.7736]
[1743944885927,6.93635,1778.3,1778.0,0.82983663]
[1743944886226,0.1370212,1778.2,1778.0,0.7736]
[1743944886596,0.1370212,1778.2,1778.0,6.98983663]
[1743944887125,0.1370212,1778.2,1778.0,6.9336]
[1743944890099,0.1370212,1778.2,1778.0,6.98983664]
[1743944890696,0.1370212,1778.2,1778.0,6.9336]
[1743944890897,0.1370212,1778.2,1778.1,16.22668]
[1743944891315,3.0,1778.6,1778.3,0.7759]
[1743944891526,3.0,1778.6,1778.3,6.9359]
[1743944891728,0.13955644,1778.5,1778.3,6.9359]
[1743944894426,3.0,1778.4,1778.3,6.16]
[1743944894631,7.07505332,1778.4,1778.3,6.16]
[1743944894928,0.13893332,1778.4,1778.3,6.16]
[1743944895526,7.07505332,1778.4,1778.3,6.16]
[1743944895731,8.25777865,1778.4,1778.3,6.16]
[1743944898132,8.80777865,1778.4,1778.3,6.16]
[1743944898533,9.62397865,1778.4,1778.3,6.16]
[1743944899620,9.07397865,1778.4,1778.3,6.16]
[1743944899800,8.25777865,1778.4,1778.3,6.16]
[1743944901206,8.25777865,1778.4,1778.0,6.16]
[1743944901401,7.07505332,1778.4,1778.0,6.16]
[1743944901741,7.07505332,1778.4,1778.1,0.7618]
[1743944902254,3.13893332,1778.4,1778.1,4.69848]
[1743944902742,3.13893332,1778.4,1778.1,0.7618]
[1743944904543,7.07505332,1778.4,1778.1,0.7618]
[1743944904703,3.93645,1778.3,1778.0,6.16]
[1743944904906,3.9364,1778.3,1778.0,6.16]
[1743944905104,0.13769585,1778.2,1778.0,6.16]
[1743944905636,3.13769585,1778.2,1778.0,6.16]
[1743944906341,0.13769585,1778.2,1778.1,0.7618]
[1743944906757,3.0,1778.4,1778.1,0.7618]
[1743944906940,0.13809529,1778.2,1778.1,4.69858]
[1743944907135,3.0,1778.4,1778.1,4.69858]
[1743944907359,0.13809529,1778.2,1778.1,4.69858]
[1743944907554,3.0,1778.4,1778.1,4.69858]
[1743944907724,3.0,1778.4,1778.1,8.63522]
[1743944907725,0.13849721,1778.2,1778.1,8.63522]
[1743944907930,3.0,1778.4,1778.1,8.63522]
[1743944908129,0.13863117,1778.2,1778.1,8.63522]
[1743944908332,3.0,1778.6,1778.2,4.72531]
[1743944908670,3.0,1778.6,1778.3,6.21622507]
[1743944908831,3.0,1778.4,1778.3,6.16]
[1743944909463,7.71922,1778.6,1778.3,6.16]
[1743944909629,3.0,1778.6,1778.3,6.16]
[1743944913054,6.93567,1778.6,1778.3,6.16]
[1743944914759,3.93612,1778.4,1778.3,6.16]
[1743944914939,6.93612,1778.4,1778.3,6.16]
[1743944916034,3.0,1778.4,1778.3,6.16]
[1743944917043,3.13948854,1778.4,1778.3,6.16]
[1743944917868,7.07560854,1778.4,1778.3,6.16]
[1743944923201,8.25905339,1778.4,1778.3,6.16]
[1743944924694,3.0,1778.2,1778.0,12.3364]
[1743944924999,0.13801651,1778.1,1778.0,12.3364]
[1743944925382,3.0,1778.2,1778.0,12.3364]
[1743944927912,3.0,1778.4,1778.0,16.27334]
[1743944928216,3.0,1778.4,1778.1,4.75914]
[1743944928775,3.0,1778.4,1778.1,0.8224]
[1743944928974,3.0,1778.4,1778.1,4.7591]
[1743944929619,3.0,1778.4,1778.1,0.8224]
[1743944929774,6.93617,1778.4,1778.1,0.8224]
[1743944929974,3.0,1778.4,1778.1,0.8224]
[1743944930176,3.0,1778.4,1778.1,4.75918]
[1743944930517,3.0,1778.4,1778.2,6.16]
[1743944931443,6.93612,1778.4,1778.2,6.16]
[1743944931647,10.8724,1778.4,1778.2,6.16]
[1743944931803,6.93612,1778.4,1778.2,6.16]
[1743944932004,3.93634,1778.3,1778.2,6.16]
[1743944932210,4.07573696,1778.3,1778.2,6.16]
[1743944932459,8.25479266,1778.3,1778.2,6.16]
[1743944934407,7.07573696,1778.3,1778.2,6.16]
[1743944935424,7.50398661,1778.3,1778.2,6.16]
[1743944936138,7.07573696,1778.3,1778.2,6.16]
[1743944936310,3.13939696,1778.3,1778.2,6.16]
[1743944936711,0.13939696,1778.3,1778.2,6.16]
[1743944936911,3.93574,1778.6,1778.2,6.9208]
[1743944937133,0.14457903,1778.5,1778.3,0.0562256]
[1743944937438,0.14457903,1778.5,1778.4,4.69692]
[1743944937623,0.14457903,1778.5,1778.4,10.85692]
[1743944937830,3.93528,1778.8,1778.4,10.85692]
[1743944938030,0.14471289,1778.5,1778.4,10.85692]
[1743944938225,3.0,1778.7,1778.4,10.85692]
[1743944938453,0.14471289,1778.5,1778.4,10.85692]
[1743944938637,3.0,1778.7,1778.4,10.85692]
[1743944939010,0.14553647,1778.6,1778.4,10.85692]
[1743944939439,0.14553647,1778.6,1778.4,6.9208]
[1743944939950,4.08121647,1778.6,1778.4,6.9208]
[1743944940131,3.0,1778.5,1778.4,6.16]
[1743944940333,6.9359,1778.5,1778.4,6.16]
[1743944940537,3.93619,1778.4,1778.2,6.16]
[1743944940708,4.73629,1778.4,1778.2,6.16]
[1743944940913,4.0806273,1778.3,1778.2,6.16]
[1743944941132,7.0806273,1778.3,1778.2,6.16]
[1743944941835,3.0,1778.1,1777.9,6.9349]
[1743944942012,6.93689,1778.1,1777.9,6.9349]
[1743944942936,7.07941148,1778.0,1777.9,6.16]
[1743944943318,3.14241148,1778.0,1777.9,6.16]
[1743944945438,0.14241148,1778.0,1777.9,6.16]
[1743944945616,0.14241148,1778.0,1777.9,10.92835987]
[1743944945816,3.0,1778.3,1777.9,10.92835987]
[1743944946066,0.13173941,1778.2,1778.0,4.71178]
[1743944946274,3.0,1778.4,1778.1,3.99301149]
[1743944946435,0.13236443,1778.3,1778.1,10.15301149]
[1743944946636,3.0,1778.4,1778.1,10.15301149]